lending/lending_fUSD_20240128
["ID","MTS","AMOUNT","RATE_DAILY","PERIOD"]
[312908915,1706454664666,-500.0,0.00052876,31]
[312908916,1706454664688,-500.0,0.00052876,31]
[312908917,1706454664711,-500.0,0.00052876,31]
[312908918,1706454664734,-834.81,0.00052876,31]
[312908919,1706454664758,-528.23,0.00052876,31]
[312908920,1706454664781,-523.03693444,0.00052876,31]
[312908921,1706454664803,-500.0,0.00052876,31]
[312908922,1706454664827,-586.28,0.00052876,31]
[312908923,1706454664852,-500.0,0.00052876,31]
[312908924,1706454664875,-500.0,0.00052876,31]
[312908925,1706454664898,-500.0,0.00052876,31]
[312908926,1706454664921,-736.24,0.00052876,31]
[312908927,1706454664945,-500.0,0.00052876,31]
[312908928,1706454664969,-500.0,0.00052876,31]
[312908929,1706454664991,-500.0,0.00052876,31]
[312908930,1706454665014,-500.0,0.00052876,31]
[312908931,1706454665051,-500.0,0.00052876,31]
[312908932,1706454665074,-500.0,0.00052876,31]
[312908933,1706454665098,-1590.02,0.00052876,31]
[312908934,1706454665124,-778.45,0.00052876,31]
[312908935,1706454665147,-500.0,0.00052876,31]
[312908936,1706454665170,-537.85685192,0.00052876,31]
[312908937,1706454665194,-709.3,0.00052876,31]
[312908938,1706454665219,-546.77,0.00052876,31]
[312908939,1706454665244,-854.4,0.00052876,31]
[312908940,1706454665267,-500.0,0.00052876,31]
[312908941,1706454665290,-958.78,0.00052876,31]
[312908942,1706454665387,-500.0,0.00052876,31]
[312908943,1706454665414,-655.44,0.00052876,31]
[312908944,1706454665438,-500.0,0.00052876,31]
[312908945,1706454665462,-500.0,0.00052876,31]
[312908946,1706454665485,-500.0,0.00052876,31]
[312908947,1706454665510,-552.57455007,0.00052876,31]
[312908948,1706454665534,-500.0,0.00052876,31]
[312908949,1706454665558,-733.5,0.00052876,31]
[312908950,1706454665582,-787.33,0.00052876,31]
[312908951,1706454665605,-500.0,0.00052876,31]
[312908952,1706454665629,-384.98875797,0.00052876,31]
[312908953,1706454665652,-500.0,0.00052876,31]
[312908954,1706454665675,-500.0,0.00052876,31]
[312908955,1706454665699,-569.13814716,0.00052876,31]
[312908956,1706454665722,-500.0,0.00052876,31]
[312908957,1706454665746,-500.0,0.00052876,31]
[312908958,1706454665769,-629.21,0.00052876,31]
[312908959,1706454665793,-629.27,0.00052876,31]
[312908960,1706454665816,-500.0,0.00052876,31]
[312908961,1706454665841,-2086.17,0.00052876,31]
[312908962,1706454665865,-500.0,0.00052876,31]
[312908963,1706454665918,-500.0,0.00052876,31]
[312908964,1706454665968,-500.0,0.00052876,31]
[312908965,1706454666015,-500.0,0.00052876,31]
[312908966,1706454666058,-500.0,0.00052876,31]
[312908967,1706454666107,-500.0,0.00052876,31]
[312908968,1706454666144,-500.0,0.00052876,31]
[312908969,1706454666183,-500.0,0.00052876,31]
[312908970,1706454666221,-500.0,0.00052876,31]
[312908971,1706454666258,-500.0,0.00052876,31]
[312908972,1706454666295,-500.0,0.00052876,31]
[312908973,1706454666332,-500.0,0.00052876,31]
[312908974,1706454666370,-11346.51,0.00052876,31]
[312908975,1706454666405,-500.0,0.00052876,31]
[312908976,1706454666444,-500.0,0.00052876,30]
[312908977,1706454666480,-500.0,0.00052876,31]
[312908978,1706454666517,-500.0,0.00052876,31]
[312908979,1706454666557,-500.0,0.00052876,31]
[312908980,1706454666593,-500.0,0.00052876,31]
[312908981,1706454666628,-500.0,0.00052876,31]
[312908982,1706454666663,-1249.59,0.00052876,31]
[312908983,1706454666701,-7265.0,0.00052876,31]
[312908984,1706454666847,-500.0,0.00052876,31]
[312908985,1706454666873,-258.9023,0.00052876,31]
[312908986,1706454666897,-1492.32,0.00052876,31]
[312908987,1706454666921,-500.0,0.00052876,31]
[312908988,1706454666950,-500.0,0.00052876,31]
[312908989,1706454666976,-500.0,0.00052876,31]
[312908990,1706454667005,-1318.47,0.00052876,31]
[312908991,1706454667030,-500.0,0.00052876,31]
[312908992,1706454667058,-500.0,0.00052876,31]
[312908993,1706454667084,-500.0,0.00052876,31]
[312908994,1706454667109,-500.0,0.00052876,31]
[312908995,1706454667135,-387.72013953,0.00052876,31]
[312908996,1706454667161,-500.0,0.00052876,31]
[312908997,1706454667186,-500.0,0.00052876,31]
[312908998,1706454667210,-409.72,0.00052877,30]
[312908999,1706454667235,-409.72,0.00052877,30]
[312909000,1706454667259,-409.72,0.00052877,30]
[312909001,1706454667283,-409.72,0.00052877,30]
[312909002,1706454667313,-409.72,0.00052877,30]
[312909003,1706454667337,-409.72,0.00052877,30]
[312909004,1706454667361,-409.72,0.00052877,30]
[312909005,1706454667385,-409.72,0.00052877,30]
[312909006,1706454667409,-409.72,0.00052877,30]
[312909007,1706454667432,-409.72,0.00052877,30]
[312909008,1706454667458,-409.72,0.00052877,30]
[312909009,1706454667482,-409.72,0.00052877,30]
[312909010,1706454667507,-409.72,0.00052877,30]
[312909011,1706454667530,-409.72,0.00052877,30]
[312909012,1706454667553,-409.72,0.00052877,30]
[312909013,1706454667577,-150.0,0.00052877,30]
[312909014,1706454667600,-150.0,0.00052877,30]
[312909015,1706454667623,-150.0,0.00052877,30]
[312909016,1706454667648,-150.0,0.00052877,30]
[312909017,1706454667672,-150.0,0.00052877,30]
[312909018,1706454667696,-150.0,0.00052877,30]
[312909019,1706454667719,-150.0,0.00052877,30]
[312909020,1706454667744,-150.2066421,0.00052879,60]
[312909021,1706454667769,-412.64597082,0.00052887,60]
[312909022,1706454667794,-155.54214326,0.00052899,60]
[312909023,1706454667818,-1000.0,0.000529,120]
[312909024,1706454667841,-1000.0,0.000529,120]
[312909025,1706454667866,-407.0,0.000529,120]
[312909026,1706454667890,-1118.57219074,0.00052901,60]
[312909027,1706454667917,-1118.57219074,0.00052907,60]
[312909028,1706454667943,-161.86262826,0.00052909,60]
[312909029,1706454667968,-150.0,0.00052911,30]
[312909030,1706454667992,-150.0,0.00052911,30]
[312909031,1706454668015,-150.0,0.00052911,30]
[312909032,1706454668040,-150.0,0.00052911,30]
[312909033,1706454668063,-150.0,0.00052911,30]
[312909034,1706454668087,-150.0,0.00052911,30]
[312909035,1706454668113,-150.0,0.00052911,30]
[312909036,1706454668137,-150.0,0.00052911,30]
[312909037,1706454668160,-152.42113845,0.00052942,60]
[312909038,1706454668187,-155.54214326,0.00052946,60]
[312909039,1706454668214,-160.45378998,0.00052954,60]
[312909040,1706454668238,-154.58312369,0.00052956,60]
[312909041,1706454668263,-155.54214326,0.00052957,60]
[312909042,1706454668287,-155.54214326,0.00052968,60]
[312909043,1706454668310,-157.3488617,0.00052972,60]
[312909044,1706454668425,-1118.57219074,0.00052977,60]
[312909045,1706454668451,-3598.07169116,0.00052987,120]
[312909046,1706454668475,-222154.56256074,0.00052987,120]
[312909047,1706454668499,-200.0,0.00052987,32]
[312909048,1706454668523,-200.0,0.00052987,38]
[312909049,1706454668547,-154.42460598,0.00052993,60]
[312909050,1706454668570,-173.58026709,0.00052993,60]
[312909051,1706454668595,-1118.57219074,0.00052995,60]
[312909052,1706454668618,-155.10176526,0.00052998,60]
[312909053,1706454668643,-50000.0,0.00053,43]
[312909054,1706454668667,-250.0,0.00053,55]
[312909055,1706454668693,-4000.0,0.00053,80]
[312909056,1706454668717,-2000.0,0.00053,120]
[312909057,1706454668741,-213.36069912,0.00053,60]
[312909058,1706454668765,-549.27909457,0.00053,30]
[312909059,1706454668790,-296.0,0.00053,120]
[312909060,1706454668814,-40000.0,0.00053,120]
[312909061,1706454668838,-505.6605985,0.00053,30]
[312909062,1706454668862,-3011.21920512,0.00053,120]
[312909063,1706454668887,-1722.14265844,0.00053,120]
[312909064,1706454668913,-5000.0,0.00053,120]
[312909065,1706454668939,-817.62,0.00053,120]
[312909066,1706454668964,-300.0,0.00053,31]
[312909067,1706454668998,-300.0,0.00053,54]
[312909068,1706454669024,-412.64597082,0.00053,60]
[312909069,1706454669051,-1118.57219074,0.00053022,60]
[312909070,1706454669079,-202.07436048,0.00053023,60]
[312909071,1706454669107,-154.42460598,0.00053024,60]
[312909072,1706454669131,-155.10176526,0.00053029,60]
[312909073,1706454669155,-202.07436048,0.00053039,60]
[312909074,1706454669180,-155.54214326,0.00053045,60]
[312909075,1706454669208,-150.2066421,0.0005305,60]
[312909076,1706454669233,-412.64597082,0.00053056,60]
[312909077,1706454669258,-154.58312369,0.00053064,60]
[312909078,1706454669281,-173.58026709,0.00053071,60]
[312909079,1706454669305,-150.2066421,0.00053073,60]
[312909080,1706454669330,-150.0,0.00053079,30]
[312909081,1706454669355,-412.64597082,0.0005308,60]
[312909082,1706454669378,-154.42460598,0.00053089,60]
[312909083,1706454669402,-153.15441342,0.00053089,30]
[312909084,1706454669427,-153.31168607,0.000531,120]
[312909085,1706454669453,-10173.81910263,0.000531,120]
[312909086,1706454669478,-158.4818493,0.00053102,60]
[312909087,1706454669502,-177.9880503,0.0005311,60]
[312909088,1706454669526,-158.1087677,0.00053114,60]
[312909089,1706454669551,-412.64597082,0.00053128,60]
[312909090,1706454669575,-198.62743155,0.00053131,60]
[312909091,1706454669599,-154.30349445,0.00053136,60]
[312909092,1706454669623,-412.64597082,0.00053147,60]
[312909093,1706454669649,-151.0128,0.00053148,59]
[312909094,1706454669672,-500.0,0.0005315,31]
[312909095,1706454669697,-500.0,0.0005315,31]
[312909096,1706454669721,-543.44,0.0005315,31]
[312909097,1706454669747,-500.0,0.0005315,31]
[312909098,1706454669771,-500.0,0.0005315,31]
[312909099,1706454669795,-548.55039554,0.0005315,31]
[312909100,1706454669821,-500.0,0.0005315,31]
[312909101,1706454669845,-834.81,0.0005315,31]
[312909102,1706454669870,-528.23,0.0005315,31]
[312909103,1706454669990,-500.0,0.0005315,31]
[312909104,1706454670017,-586.28,0.0005315,31]
[312909105,1706454670042,-500.0,0.0005315,31]
[312909106,1706454670067,-500.0,0.0005315,31]
[312909107,1706454670094,-500.0,0.0005315,31]
[312909108,1706454670123,-736.24,0.0005315,31]
[312909109,1706454670149,-500.0,0.0005315,31]
[312909110,1706454670175,-500.0,0.0005315,31]
[312909111,1706454670205,-553.42538894,0.0005315,31]
[312909112,1706454670231,-500.0,0.0005315,31]
[312909113,1706454670259,-392.58866101,0.0005315,31]
[312909114,1706454670285,-248.59047846,0.0005315,31]
[312909115,1706454670312,-1590.02,0.0005315,31]
[312909116,1706454670338,-778.45,0.0005315,31]
[312909117,1706454670364,-500.0,0.0005315,31]
[312909118,1706454670390,-709.3,0.0005315,31]
[312909119,1706454670415,-546.77,0.0005315,31]
[312909120,1706454670441,-854.4,0.0005315,31]
[312909121,1706454670466,-500.0,0.0005315,31]
[312909122,1706454670491,-958.78,0.0005315,31]
[312909123,1706454670516,-500.0,0.0005315,31]
[312909124,1706454670540,-655.44,0.0005315,31]
[312909125,1706454670566,-500.0,0.0005315,31]
[312909126,1706454670592,-500.0,0.0005315,31]
[312909127,1706454670618,-500.0,0.0005315,31]
[312909128,1706454670644,-500.0,0.0005315,31]
[312909129,1706454670672,-733.5,0.0005315,31]
[312909130,1706454670698,-787.33,0.0005315,31]
[312909131,1706454670724,-500.0,0.0005315,31]
[312909132,1706454670749,-500.0,0.0005315,31]
[312909133,1706454670773,-500.0,0.0005315,31]
[312909134,1706454670798,-500.0,0.0005315,31]
[312909135,1706454670823,-500.0,0.0005315,31]
[312909136,1706454670848,-629.21,0.0005315,31]
[312909137,1706454670872,-629.27,0.0005315,31]
[312909138,1706454670895,-500.0,0.0005315,31]
[312909139,1706454670920,-2086.17,0.0005315,31]
[312909140,1706454670944,-500.0,0.0005315,31]
[312909141,1706454670970,-500.0,0.0005315,31]
[312909142,1706454670994,-222.15076112,0.0005315,31]
[312909143,1706454671019,-500.0,0.0005315,31]
[312909144,1706454671043,-500.0,0.0005315,31]
[312909145,1706454671068,-500.0,0.0005315,31]
[312909146,1706454671091,-500.0,0.0005315,31]
[312909147,1706454671116,-500.0,0.0005315,31]
[312909148,1706454671141,-500.0,0.0005315,31]
[312909149,1706454671166,-500.0,0.0005315,31]
[312909150,1706454671192,-500.0,0.0005315,31]
[312909151,1706454671216,-500.0,0.0005315,31]
[312909152,1706454671240,-11346.51,0.0005315,31]
[312909153,1706454671264,-500.0,0.0005315,30]
[312909154,1706454671290,-500.0,0.0005315,31]
[312909155,1706454671314,-500.0,0.0005315,31]
[312909156,1706454671341,-500.0,0.0005315,31]
[312909157,1706454671367,-500.0,0.0005315,31]
[312909158,1706454671391,-429.09557526,0.0005315,31]
[312909159,1706454671498,-1249.59,0.0005315,31]
[312909160,1706454671525,-7265.0,0.0005315,31]
[312909161,1706454671550,-500.0,0.0005315,31]
[312909162,1706454671575,-1492.32,0.0005315,31]
[312909163,1706454671599,-500.0,0.0005315,31]
[312909164,1706454671625,-522.24483773,0.0005315,31]
[312909165,1706454671649,-500.0,0.0005315,31]
[312909166,1706454671674,-1318.47,0.0005315,31]
[312909167,1706454671697,-500.0,0.0005315,31]
[312909168,1706454671721,-500.0,0.0005315,31]
[312909169,1706454671745,-500.0,0.0005315,31]
[312909170,1706454671769,-500.0,0.0005315,31]
[312909171,1706454671793,-500.0,0.0005315,31]
[312909172,1706454671817,-612.85154132,0.0005315,31]
[312909173,1706454671840,-202.07436048,0.00053181,60]
[312909174,1706454671864,-202.07436048,0.0005319,60]
[312909175,1706454671889,-159.97215621,0.00053199,60]
[312909176,1706454671913,-268.65246503,0.000532,120]
[312909177,1706454671939,-1532.04320776,0.000532,120]
[312909178,1706454671963,-8029.0,0.000532,120]
[312909179,1706454671986,-150.2066421,0.00053202,60]
[312909180,1706454672010,-412.64597082,0.00053217,60]
[312909181,1706454672034,-150.2066421,0.00053221,60]
[312909182,1706454672057,-412.64597082,0.00053223,60]
[312909183,1706454672081,-150.0,0.00053247,30]
[312909184,1706454672107,-157.3488617,0.00053255,60]
[312909185,1706454672131,-155.54214326,0.00053263,60]
[312909186,1706454672155,-161.86262826,0.00053277,60]
[312909187,1706454672179,-66449.0,0.00053282,30]
[312909188,1706454672204,-2321.0,0.00053282,30]
[312909189,1706454672226,-521.0,0.00053282,30]
[312909190,1706454672249,-160.45378998,0.00053287,60]
[312909191,1706454672274,-412.64597082,0.00053297,60]
[312909192,1706454672297,-155.10176526,0.00053297,60]
[312909193,1706454672320,-5789.03853924,0.000533,60]
[312909194,1706454672344,-728038.18918017,0.000533,31]
[312909195,1706454672367,-54992.34725262,0.000533,31]
[312909196,1706454672813,-308.16806821,0.00022998,2]
[312909197,1706454672843,-2081.33650756,0.00022998,2]
[312909198,1706454672855,-2534.80452986,0.00022998,2]
[312909199,1706454672891,-504.15977998,0.00022998,2]
[312909200,1706454672903,-1247.12853707,0.00022998,2]
[312909201,1706454672914,-2946.39655582,0.00022998,2]
[312909202,1706454672926,-4222.27790851,0.00022998,2]
[312909203,1706454672938,-1387.65753446,0.00022998,2]
[312909204,1706454672953,-345.85,0.00022998,2]
[312909205,1706454672965,-446.14741197,0.00022998,2]
[312909206,1706454672976,-597.53,0.00022998,2]
[312909207,1706454672987,-1991.94868802,0.00022998,2]
[312909208,1706454673002,-4845.87326741,0.00022998,2]
[312909209,1706454673013,-479.94703237,0.00022998,2]
[312909210,1706454673023,-1650.93169972,0.00022999,2]
[312909211,1706454673033,-1048.54959557,0.00023,2]
[312909212,1706454673044,-504.57445119,0.00023,2]
[312909213,1706454673055,-702.93501748,0.00023,2]
[312909214,1706454673066,-380.16156235,0.00023,2]
[312909215,1706454673089,-819.4114298,0.00023,2]
[312909216,1706454673103,-427.18428536,0.00023,2]
[312909217,1706454673116,-537.88,0.00023,2]
[312909218,1706454673127,-768.44720034,0.00023,2]
[312909219,1706454673139,-463.51367634,0.00023,2]
[312909220,1706454673169,-169622.53435884,0.00023,2]
[312909221,1706454673181,-100278.17001237,0.00023,2]
[312909222,1706454673194,-110722.29809381,0.00023,2]
[312909223,1706454673205,-2360.98849158,0.00023,2]
[312909224,1706454673216,-383.40730391,0.00023,2]
[312909225,1706454673228,-11768.32918391,0.00023,2]
[312909226,1706454673261,-6506.89,0.00023,2]
[312909227,1706454673448,-286.08556777,0.00022997,2]
[312909228,1706454673462,-713.91443223,0.00022997,2]
[312909229,1706454673471,-10542.08412809,0.00023,2]
[312909230,1706454673482,-755.02,0.00023,2]
[312909231,1706454673497,-413.46,0.00023,2]
[312909232,1706454673508,-454.44397869,0.00023,2]
[312909233,1706454673519,-716.28058986,0.00023,2]
[312909234,1706454673534,-388.35687835,0.00023,2]
[312909235,1706454673549,-927.06423097,0.00023,2]
[312909236,1706454673563,-5754.62408953,0.00023,2]
[312909237,1706454673579,-695.73060036,0.00023,2]
[312909238,1706454673596,-203941.88516838,0.00023,2]
[312909239,1706454673607,-2081.79376849,0.00023,2]
[312909240,1706454674252,1190.28363517,0.00022078,2]
[312909241,1706454674307,233.15598809,0.00021848,7]
[312909242,1706454674605,2476.20957475,0.00022308,2]
[312909245,1706454681271,-24000.24778672,0.00042,30]
[312909246,1706454681308,-1000.0,0.00045865,30]
[312909247,1706454681342,-359.82847572,0.0005,120]
[312909248,1706454681378,-500.0,0.00052054,31]
[312909249,1706454681565,-500.0,0.00052328,31]
[312909250,1706454681589,-391.58586683,0.000525,120]
[312909251,1706454681614,-500.0,0.00052602,31]
[312909252,1706454681639,-500.0,0.00052876,31]
[312909253,1706454681663,-150.0,0.00052877,30]
[312909254,1706454681688,-500.0,0.0005315,31]
[312909255,1706454681712,-2830865.74695136,0.000533,31]
[312909256,1706454681735,-2140732.59091937,0.000533,31]
[312909257,1706454688347,-489376.41050696,0.0005,60]
[312909258,1706454688381,-518.89,0.00052054,31]
[312909259,1706454688461,-518.89,0.00052328,31]
[312909260,1706454688487,-518.89,0.00052602,31]
[312909261,1706454688514,-518.89,0.00052876,31]
[312909262,1706454688541,-518.89,0.0005315,31]
[312909263,1706454688566,-2652591.34128715,0.000533,31]
[312909264,1706454688591,-1855437.79820589,0.000533,31]
[312909265,1706454692198,-3226903.37764491,0.000533,31]
[312909266,1706454692224,-105748.71114629,0.000533,31]
[312909267,1706454692248,-20076.47880402,0.000533,31]
[312909268,1706454692271,-158.35801355,0.000533,60]
[312909269,1706454692295,-300.0,0.000533,30]
[312909270,1706454692320,-412.64597082,0.00053317,60]
[312909271,1706454692344,-154.58312369,0.0005332,60]
[312909272,1706454692368,-1118.57219074,0.00053328,60]
[312909273,1706454692392,-412.64597082,0.00053332,60]
[312909274,1706454692415,-1118.57219074,0.00053338,60]
[312909275,1706454692439,-161.86262826,0.00053347,60]
[312909276,1706454692462,-158.8696468,0.00053349,60]
[312909277,1706454692485,-202.07436048,0.00053358,60]
[312909278,1706454692507,-154.30349445,0.00053358,60]
[312909279,1706454692530,-160.45378998,0.00053362,60]
[312909280,1706454692553,-154.58312369,0.00053367,60]
[312909281,1706454692576,-5000.0,0.00053375,120]
[312909282,1706454692599,-154.58312369,0.00053378,60]
[312909283,1706454692622,-407.0,0.000534,120]
[312909284,1706454692645,-150.0,0.00053401,30]
[312909285,1706454692668,-1118.57219074,0.00053402,60]
[312909286,1706454692691,-412.64597082,0.00053405,60]
[312909287,1706454692714,-150.2066421,0.00053409,60]
[312909288,1706454692738,-150.0,0.00053415,30]
[312909289,1706454692761,-154.58312369,0.0005342,60]
[312909290,1706454692783,-543.44,0.00053424,31]
[312909291,1706454692810,-500.0,0.00053424,31]
[312909292,1706454692833,-500.0,0.00053424,31]
[312909293,1706454692856,-500.0,0.00053424,31]
[312909294,1706454692880,-834.81,0.00053424,31]
[312909295,1706454692902,-560.1817989,0.00053424,31]
[312909296,1706454692925,-586.28,0.00053424,31]
[312909297,1706454692950,-500.0,0.00053424,31]
[312909298,1706454692975,-500.0,0.00053424,31]
[312909299,1706454692999,-736.24,0.00053424,31]
[312909300,1706454693024,-500.0,0.00053424,31]
[312909301,1706454693048,-281.55305704,0.00053424,31]
[312909302,1706454693073,-500.0,0.00053424,31]
[312909303,1706454693097,-1590.02,0.00053424,31]
[312909304,1706454693123,-778.45,0.00053424,31]
[312909305,1706454693147,-500.0,0.00053424,31]
[312909306,1706454693173,-709.3,0.00053424,31]
[312909307,1706454693196,-500.0,0.00053424,120]
[312909308,1706454693221,-560.27119284,0.00053424,120]
[312909309,1706454693245,-546.77,0.00053424,31]
[312909310,1706454693270,-500.0,0.00053424,31]
[312909311,1706454693376,-958.78,0.00053424,31]
[312909312,1706454693399,-500.0,0.00053424,31]
[312909313,1706454693423,-155.54214326,0.00053424,60]
[312909314,1706454693447,-500.0,0.00053424,31]
[312909315,1706454693472,-500.0,0.00053424,31]
[312909316,1706454693496,-500.0,0.00053424,31]
[312909317,1706454693520,-500.0,0.00053424,31]
[312909318,1706454693549,-733.5,0.00053424,31]
[312909319,1706454693573,-787.33,0.00053424,31]
[312909320,1706454693597,-500.0,0.00053424,31]
[312909321,1706454693622,-500.0,0.00053424,31]
[312909322,1706454693646,-157.61994778,0.00053424,31]
[312909323,1706454693671,-500.0,0.00053424,31]
[312909324,1706454693695,-500.0,0.00053424,31]
[312909325,1706454693719,-629.21,0.00053424,31]
[312909326,1706454693743,-629.27,0.00053424,31]
[312909327,1706454693767,-500.0,0.00053424,31]
[312909328,1706454693791,-2086.17,0.00053424,31]
[312909329,1706454693815,-500.0,0.00053424,31]
[312909330,1706454693840,-500.0,0.00053424,31]
[312909331,1706454693864,-500.0,0.00053424,31]
[312909332,1706454693889,-500.0,0.00053424,31]
[312909333,1706454693913,-500.0,0.00053424,31]
[312909334,1706454693938,-500.0,0.00053424,31]
[312909335,1706454693963,-243.20886157,0.00053424,31]
[312909336,1706454693988,-500.0,0.00053424,31]
[312909337,1706454694012,-370.09882163,0.00053424,31]
[312909338,1706454694038,-448.76126912,0.00053424,31]
[312909339,1706454694064,-500.0,0.00053424,31]
[312909340,1706454694088,-11346.51,0.00053424,31]
[312909341,1706454694115,-242.487397,0.00053424,30]
[312909342,1706454694142,-500.0,0.00053424,31]
[312909343,1706454694168,-500.0,0.00053424,31]
[312909344,1706454694194,-500.0,0.00053424,31]
[312909345,1706454694219,-500.0,0.00053424,31]
[312909346,1706454694244,-1249.59,0.00053424,31]
[312909347,1706454694267,-7265.0,0.00053424,31]
[312909348,1706454694293,-500.0,0.00053424,31]
[312909349,1706454694316,-1492.32,0.00053424,31]
[312909350,1706454694341,-500.0,0.00053424,31]
[312909351,1706454694364,-500.0,0.00053424,31]
[312909352,1706454694393,-1318.47,0.00053424,31]
[312909353,1706454694417,-500.0,0.00053424,31]
[312909354,1706454694441,-500.0,0.00053424,31]
[312909355,1706454694466,-500.0,0.00053424,31]
[312909356,1706454694491,-500.0,0.00053424,31]
[312909357,1706454694595,-500.0,0.00053424,31]
[312909358,1706454694619,-500.0,0.00053424,31]
[312909359,1706454694643,-518.89,0.00053424,31]
[312909360,1706454694667,-202.07436048,0.00053425,60]
[312909361,1706454694690,-150.30324067,0.00053427,60]
[312909362,1706454694714,-155.54214326,0.00053434,60]
[312909363,1706454694737,-152.42113845,0.00053437,60]
[312909364,1706454694761,-198.62743156,0.00053438,60]
[312909365,1706454694785,-150.0,0.00053445,30]
[312909366,1706454694809,-155.54214326,0.00053446,60]
[312909367,1706454694834,-151.0128,0.00053448,59]
[312909368,1706454694858,-1118.57219074,0.00053449,60]
[312909369,1706454694881,-157.3488617,0.00053454,60]
[312909370,1706454694905,-155.10176526,0.00053465,60]
[312909371,1706454694928,-158.8696468,0.00053479,60]
[312909372,1706454694952,-161.86262826,0.0005348,60]
[312909373,1706454694977,-1118.57219074,0.00053508,60]
[312909374,1706454695000,-156.90240728,0.00053526,60]
[312909375,1706454695027,-157.0128,0.00053548,59]
[312909376,1706454695051,-150.0,0.0005355,30]
[312909377,1706454695076,-202.07436048,0.0005355,60]
[312909378,1706454695101,-155.54214326,0.00053581,60]
[312909379,1706454695127,-150.0,0.00053583,30]
[312909380,1706454695151,-1118.57219074,0.00053586,60]
[312909381,1706454695177,-158.8696468,0.00053588,60]
[312909382,1706454695202,-153.15441342,0.00053589,30]
[312909383,1706454695229,-158.8696468,0.00053591,60]
[312909384,1706454695257,-506.930414,0.000536,120]
[312909385,1706454695281,-20532.54583434,0.000536,120]
[312909386,1706454695305,-17454.0,0.000536,120]
[312909387,1706454695329,-156.0,0.000536,120]
[312909388,1706454695354,-202.07436048,0.00053612,60]
[312909389,1706454695379,-1118.57219074,0.00053613,60]
[312909390,1706454695412,-202.07436048,0.00053615,60]
[312909391,1706454695437,-412.64597082,0.00053618,60]
[312909392,1706454695463,-202.07436048,0.00053619,60]
[312909393,1706454695488,-168.05222796,0.00053632,60]
[312909394,1706454695514,-151.0128,0.00053648,69]
[312909395,1706454695539,-412.64597082,0.00053658,60]
[312909396,1706454695563,-157.3488617,0.00053682,60]
[312909397,1706454695588,-155.54214326,0.00053682,60]
[312909398,1706454695612,-202.07436048,0.00053688,60]
[312909399,1706454695637,-412.64597082,0.0005369,60]
[312909400,1706454695661,-155.9836626,0.00053696,60]
[312909401,1706454695763,-543.44,0.00053698,31]
[312909402,1706454695788,-334.47284445,0.00053698,31]
[312909403,1706454695812,-500.0,0.00053698,31]
[312909404,1706454695838,-500.0,0.00053698,31]
[312909405,1706454695863,-834.81,0.00053698,31]
[312909406,1706454695888,-586.28,0.00053698,31]
[312909407,1706454695912,-500.0,0.00053698,31]
[312909408,1706454695937,-500.0,0.00053698,31]
[312909409,1706454695961,-736.24,0.00053698,31]
[312909410,1706454695987,-500.0,0.00053698,31]
[312909411,1706454696011,-201.80744411,0.00053698,31]
[312909412,1706454696039,-1590.02,0.00053698,31]
[312909413,1706454696064,-778.45,0.00053698,31]
[312909414,1706454696088,-500.0,0.00053698,31]
[312909415,1706454696114,-709.3,0.00053698,31]
[312909416,1706454696140,-546.77,0.00053698,31]